[Event "Championnat du monde jeunes U10"]
[Date "2024.11.24"]
[White "Zuo, Junyu"]
[Black "Ramesan, Raunak Amit"]
[WhiteElo "2120"]
[BlackElo "1802"]
[Round "9.15"]
[Result "1-0"]
[TimeControl "5400+30"]

1. e4 {[%clk 1:30:30]} 1... e5 {[%clk 1:30:54]} 2. Bc4 {[%clk 1:30:38]} 2... Nf6
{[%clk 1:31:19]} 3. d3 {[%clk 1:30:33]} 3... Nc6 {[%clk 1:31:45]} 4. Nf3 {[%clk
1:30:44]} 4... Bc5 {[%clk 1:32:09]} 5. c3 {[%clk 1:30:56]} 5... d6 {[%clk
1:32:35]} 6. O-O {[%clk 1:30:32]} 6... O-O {[%clk 1:33:00]} 7. a4 {[%clk
1:30:50]} 7... a5 {[%clk 1:33:26]} 8. Nbd2 {[%clk 1:30:19]} 8... Ba7 {[%clk
1:30:21]} 9. h3 {[%clk 1:29:50]} 9... Ne7 {[%clk 1:30:27]} 10. d4 {[%clk
1:26:53]} 10... Ng6 {[%clk 1:26:21]} 11. Bd3 {[%clk 1:21:50]} 11... Re8 {[%clk
1:22:21]} 12. Re1 {[%clk 1:19:21]} 12... Nh5 {[%clk 1:14:27]} 13. Nf1 {[%clk
1:10:54]} 13... Nhf4 {[%clk 1:08:35]} 14. Bc2 {[%clk 0:59:11]} 14... Bd7 {[%clk
1:02:12]} 15. Ng3 {[%clk 0:56:50]} 15... Bb6 {[%clk 0:43:13]} 16. Be3 {[%clk
0:52:11]} 16... h6 {[%clk 0:38:48]} 17. Qd2 {[%clk 0:48:44]} 17... Bc6 {[%clk
0:33:37]} 18. Rad1 {[%clk 0:41:06]} 18... Qf6 {[%clk 0:33:22]} 19. Kh2 {[%clk
0:34:42]} 19... Rad8 {[%clk 0:32:45]} 20. b3 {[%clk 0:26:45]} 20... Bd7 {[%clk
0:29:24]} 21. Ng1 {[%clk 0:15:51]} 21... Bc8 {[%clk 0:28:49]} 22. N3e2 {[%clk
0:09:54]} 22... Nxe2 {[%clk 0:26:11]} 23. Nxe2 {[%clk 0:07:29]} 23... c6 {[%clk
0:19:55]} 24. f4 {[%clk 0:06:37]} 24... Bc7 {[%clk 0:19:36]} 25. Kg1 {[%clk
0:06:08]} 25... Nh4 {[%clk 0:11:25]} 26. Bf2 {[%clk 0:04:55]} 26... Ng6 {[%clk
0:11:17]} 27. Bg3 {[%clk 0:04:31]} 27... Qe7 {[%clk 0:09:53]} 28. Rf1 {[%clk
0:04:31]} 28... exf4 {[%clk 0:09:33]} 29. Nxf4 {[%clk 0:04:52]} 29... Nxf4
{[%clk 0:08:58]} 30. Bxf4 {[%clk 0:05:13]} 30... Be6 {[%clk 0:07:24]} 31. Bxh6
{[%clk 0:02:50]} 31... gxh6 {[%clk 0:07:36]} 32. Qxh6 {[%clk 0:03:16]} 32... Qf8
{[%clk 0:06:44]} 33. Qh4 {[%clk 0:03:32]} 33... Bc8 {[%clk 0:05:18]} 34. e5
{[%clk 0:02:20]} 34... Qg7 {[%clk 0:05:43]} 35. Rd3 {[%clk 0:02:22]} 35... Re6
{[%clk 0:05:06]} 36. Rg3 {[%clk 0:02:37]} 36... Rg6 {[%clk 0:05:31]} 37. Bxg6
{[%clk 0:03:02]} 37... fxg6 {[%clk 0:05:55]} 38. Rf6 {[%clk 0:03:26]} 38... Bf5
{[%clk 0:05:46]} 39. Rxf5 {[%clk 0:03:21]} 39... dxe5 {[%clk 0:05:59]} 40. Rf6
{[%clk 0:03:09]} 40... Rd6 {[%clk 0:06:05]} 41. Rgxg6 {[%clk 0:02:48]} 41...
Rxf6 {[%clk 0:06:23]} 42. Qxf6 {[%clk 0:02:55]} 1-0

[Variant "Standard"]
[Site "Europe Echecs"]

[Event "Championnat du monde jeunes U10"]
[Date "2024.11.24"]
[White "Shangin, Lev"]
[Black "Todmunkh, Turbat"]
[WhiteElo "2056"]
[BlackElo "1773"]
[Round "9.16"]
[Result "1-0"]
[TimeControl "5400+30"]

1. d4 {[%clk 1:30:36]} 1... Nf6 {[%clk 1:30:55]} 2. c4 {[%clk 1:30:46]} 2... g6
{[%clk 1:31:21]} 3. Nc3 Bg7 4. e4 {[%clk 1:30:56]} 4... d6 5. Nf3 {[%clk
1:31:23]} 5... O-O 6. Be2 Bg4 7. Be3 Bxf3 8. Bxf3 e5 {[%clk 1:31:28]} 9. d5
{[%clk 1:26:34]} 9... a5 {[%clk 1:30:55]} 10. g4 {[%clk 1:15:24]} 10... Nfd7
{[%clk 1:23:04]} 11. h4 {[%clk 1:07:12]} 11... Na6 {[%clk 1:10:27]} 12. Qd2
{[%clk 0:59:26]} 12... Ndc5 {[%clk 1:05:44]} 13. O-O-O {[%clk 0:47:02]} 13...
Qd7 {[%clk 0:54:05]} 14. g5 {[%clk 0:41:19]} 14... a4 {[%clk 0:37:50]} 15. Rdg1
{[%clk 0:34:48]} 15... b6 {[%clk 0:29:34]} 16. Bg4 {[%clk 0:24:02]} 16... Qe7
{[%clk 0:26:10]} 17. f3 {[%clk 0:22:24]} 17... a3 {[%clk 0:22:57]} 18. b3 {[%clk
0:18:26]} 18... f5 {[%clk 0:05:13]} 19. gxf6 {[%clk 0:18:09]} 19... Bxf6 {[%clk
0:05:35]} 20. Be6+ {[%clk 0:07:01]} 20... Kh8 {[%clk 0:02:50]} 21. h5 {[%clk
0:06:43]} 21... g5 {[%clk 0:02:35]} 22. h6 {[%clk 0:06:16]} 22... Nb4 {[%clk
0:01:42]} 23. Bxc5 {[%clk 0:05:38]} 23... bxc5 {[%clk 0:02:08]} 24. Nd1 {[%clk
0:05:48]} 24... Nc6 {[%clk 0:00:52]} 25. dxc6 {[%clk 0:05:23]} 25... Qxe6 {[%clk
0:01:19]} 26. Ne3 {[%clk 0:05:16]} 26... Rae8 {[%clk 0:01:13]} 27. Nd5 {[%clk
0:04:37]} 27... Bd8 {[%clk 0:01:37]} 28. Rg3 {[%clk 0:04:44]} 28... Rf7 {[%clk
0:01:00]} 29. Rh5 {[%clk 0:03:28]} 29... Ref8 {[%clk 0:00:40]} 30. Qg2 {[%clk
0:03:14]} 30... Qg6 {[%clk 0:00:50]} 31. Rh1 {[%clk 0:03:20]} 31... Qe6 {[%clk
0:01:03]} 32. Ne3 {[%clk 0:03:04]} 32... g4 {[%clk 0:00:31]} 33. Rxg4 {[%clk
0:03:05]} 33... Rxf3 {[%clk 0:00:53]} 34. Rg7 {[%clk 0:01:26]} 34... Rxe3 {[%clk
0:00:35]} 35. Rg4 Ref3 1-0

[Variant "Standard"]
[Site "Europe Echecs"]

[Event "Championnat du monde jeunes U10"]
[Date "2024.11.24"]
[White "Fuentes de Nova, Sebastian"]
[Black "Jani, Aakash"]
[WhiteElo "1929"]
[BlackElo "1810"]
[Round "9.17"]
[Result "1-0"]
[TimeControl "5400+30"]

1. e4 {[%clk 1:30:28]} 1... e5 {[%clk 1:29:57]} 2. Nf3 {[%clk 1:30:49]} 2... Nc6
{[%clk 1:29:11]} 3. d4 {[%clk 1:31:01]} 3... exd4 {[%clk 1:28:45]} 4. Bc4 {[%clk
1:30:48]} 4... Bc5 {[%clk 1:28:03]} 5. Ng5 {[%clk 1:31:03]} 5... Nh6 {[%clk
1:26:35]} 6. Nxf7 {[%clk 1:31:22]} 6... Nxf7 {[%clk 1:25:39]} 7. Bxf7+ {[%clk
1:31:43]} 7... Kxf7 {[%clk 1:23:20]} 8. Qh5+ {[%clk 1:31:17]} 8... g6 {[%clk
1:22:09]} 9. Qxc5 {[%clk 1:30:46]} 9... Re8 {[%clk 1:19:49]} 10. Qd5+ {[%clk
1:26:51]} 10... Re6 {[%clk 1:16:01]} 11. O-O {[%clk 1:26:45]} 11... Qf6 {[%clk
1:10:08]} 12. Nd2 {[%clk 1:18:54]} 12... Ne7 {[%clk 1:08:27]} 13. Qb3 {[%clk
1:18:44]} 13... c6 {[%clk 1:07:33]} 14. Nf3 {[%clk 1:16:55]} 14... Kg7 {[%clk
0:58:30]} 15. Bg5 {[%clk 1:09:56]} 15... Qf7 {[%clk 0:56:18]} 16. Rfe1 {[%clk
1:09:04]} 16... c5 {[%clk 0:49:30]} 17. e5 {[%clk 1:06:50]} 17... h6 {[%clk
0:48:43]} 18. Bf6+ {[%clk 1:06:01]} 18... Kh7 {[%clk 0:48:27]} 19. Ng5+ {[%clk
1:05:50]} 19... Kg8 {[%clk 0:48:17]} 20. Nxf7 {[%clk 1:06:12]} 20... Kxf7 {[%clk
0:48:25]} 21. Qh3 {[%clk 1:04:49]} 21... h5 {[%clk 0:45:02]} 22. g4 {[%clk
1:03:42]} 22... d6 {[%clk 0:38:55]} 23. Bxe7 {[%clk 1:01:45]} 23... Rxe7 {[%clk
0:36:35]} 24. exd6 {[%clk 1:01:40]} 24... Re6 {[%clk 0:32:04]} 25. Qf3+ {[%clk
1:01:44]} 25... Kg7 {[%clk 0:32:07]} 26. Rxe6 {[%clk 1:02:07]} 26... Bxe6 {[%clk
0:32:31]} 27. Qxb7+ {[%clk 1:02:32]} 27... Kh6 {[%clk 0:32:49]} 28. Qxa8 {[%clk
1:02:48]} 28... Bxg4 {[%clk 0:33:07]} 29. Qh8+ {[%clk 1:02:27]} 29... Kg5 {[%clk
0:33:29]} 30. h4+ {[%clk 1:02:52]} 30... Kxh4 {[%clk 0:33:39]} 31. Qf6+ {[%clk
1:03:08]} 31... Kh3 {[%clk 0:33:59]} 32. d7 {[%clk 1:03:30]} 32... Bxd7 {[%clk
0:34:19]} 33. Qf3+ {[%clk 1:03:54]} 33... Kh4 {[%clk 0:34:42]} 34. Qg3# {[%clk
1:04:21]} 1-0

[Variant "Standard"]
[Site "Europe Echecs"]

[Event "Championnat du monde jeunes U10"]
[Date "2024.11.24"]
[White "Akramov, Khusan"]
[Black "Andre, Tomas"]
[WhiteElo "1782"]
[BlackElo "1928"]
[Round "9.18"]
[Result "0-1"]
[TimeControl "5400+30"]

1. e4 {[%clk 1:30:46]} 1... Nf6 {[%clk 1:29:47]} 2. e5 {[%clk 1:31:12]} 2... Nd5
{[%clk 1:30:00]} 3. d4 {[%clk 1:31:37]} 3... d6 {[%clk 1:30:23]} 4. c4 {[%clk
1:31:40]} 4... Nb6 {[%clk 1:30:30]} 5. f4 {[%clk 1:31:41]} 5... dxe5 {[%clk
1:30:45]} 6. fxe5 {[%clk 1:32:07]} 6... Bf5 {[%clk 1:30:37]} 7. Nc3 {[%clk
1:32:15]} 7... e6 {[%clk 1:30:44]} 8. Nf3 {[%clk 1:32:21]} 8... Bb4 {[%clk
1:30:40]} 9. Be3 {[%clk 1:32:28]} 9... c5 {[%clk 1:29:58]} 10. dxc5 {[%clk
1:28:00]} 10... Qxd1+ {[%clk 1:30:05]} 11. Kxd1 {[%clk 1:27:06]} 11... Bxc3
{[%clk 1:29:41]} 12. bxc3 {[%clk 1:27:28]} 12... Na4 {[%clk 1:29:59]} 13. Nd4
{[%clk 1:24:18]} 13... Bg4+ {[%clk 1:24:08]} 14. Kc2 {[%clk 1:24:40]} 14... O-O
{[%clk 1:21:47]} 15. Nb3 {[%clk 1:18:23]} 15... Nd7 {[%clk 1:16:50]} 16. Bd4
{[%clk 1:18:26]} 16... Rac8 {[%clk 1:16:38]} 17. c6 {[%clk 1:17:14]} 17... Bf5+
{[%clk 1:15:55]} 18. Bd3 {[%clk 1:17:14]} 18... Bxd3+ {[%clk 1:16:19]} 19. Kxd3
{[%clk 1:17:36]} 19... Rxc6 {[%clk 1:16:39]} 20. Rab1 {[%clk 1:11:43]} 20... Rd8
{[%clk 1:15:51]} 21. Kc2 {[%clk 1:10:44]} 21... b6 {[%clk 1:11:48]} 22. Nd2
{[%clk 1:09:25]} 22... Nac5 {[%clk 1:10:22]} 23. Rhe1 {[%clk 1:06:11]} 23... Nb7
{[%clk 1:08:51]} 24. Re4 {[%clk 1:02:35]} 24... Na5 {[%clk 1:08:50]} 25. Rb4
{[%clk 1:02:33]} 25... Rc7 {[%clk 1:06:34]} 26. g4 {[%clk 0:58:59]} 26... Nb8
{[%clk 1:00:18]} 27. Be3 {[%clk 0:51:15]} 27... Nac6 {[%clk 0:56:03]} 28. Ra4
{[%clk 0:51:26]} 28... Nd7 {[%clk 0:55:41]} 29. Nf3 {[%clk 0:51:01]} 29... Rdc8
{[%clk 0:54:08]} 30. g5 {[%clk 0:44:23]} 30... Ne7 {[%clk 0:49:51]} 31. Rb4
{[%clk 0:41:58]} 31... Nc6 {[%clk 0:46:06]} 32. Ra4 {[%clk 0:41:43]} 32... Nd8
{[%clk 0:45:04]} 33. Rb4 {[%clk 0:41:14]} 33... Nb7 {[%clk 0:44:58]} 34. Nd2
{[%clk 0:40:49]} 34... Nbc5 {[%clk 0:44:34]} 35. Bxc5 {[%clk 0:40:39]} 35...
Rxc5 {[%clk 0:44:07]} 36. Nf3 {[%clk 0:40:52]} 36... a5 {[%clk 0:44:28]} 37. Ra4
{[%clk 0:39:57]} 37... R5c7 {[%clk 0:44:35]} 38. Rd4 {[%clk 0:40:11]} 38... Nc5
{[%clk 0:44:39]} 39. Ra3 {[%clk 0:40:30]} 39... Kf8 {[%clk 0:44:02]} 40. Nd2
{[%clk 0:39:16]} 40... Nd7 {[%clk 0:41:44]} 41. Nf3 {[%clk 0:39:39]} 41... Ke7
{[%clk 0:40:53]} 42. Ra4 {[%clk 0:38:39]} 42... Nc5 {[%clk 0:39:52]} 43. Ra3
{[%clk 0:39:05]} 43... Rd8 {[%clk 0:33:25]} 44. Nd2 {[%clk 0:37:08]} 44... Rcd7
{[%clk 0:33:21]} 45. Nf3 {[%clk 0:37:11]} 45... f6 {[%clk 0:31:38]} 46. gxf6+
{[%clk 0:37:16]} 46... gxf6 {[%clk 0:32:07]} 47. exf6+ {[%clk 0:37:39]} 47...
Kxf6 {[%clk 0:32:31]} 48. Rf4+ {[%clk 0:37:54]} 48... Kg7 {[%clk 0:32:03]} 49.
Rg4+ {[%clk 0:38:09]} 49... Kh8 {[%clk 0:32:18]} 50. Rd4 {[%clk 0:37:33]} 50...
Rf8 {[%clk 0:32:10]} 51. Ng5 {[%clk 0:35:11]} 51... Rg7 {[%clk 0:31:59]} 52. h4
{[%clk 0:34:47]} 52... h6 {[%clk 0:32:20]} 53. Ne4 {[%clk 0:34:50]} 53... Rg2+
{[%clk 0:32:22]} 54. Nd2 {[%clk 0:35:09]} 54... Rff2 {[%clk 0:32:03]} 55. Kc1
{[%clk 0:34:24]} 55... Rxd2 {[%clk 0:31:06]} 56. Rxd2 {[%clk 0:34:37]} 56...
Rxd2 {[%clk 0:31:35]} 57. Kxd2 {[%clk 0:35:01]} 57... a4 {[%clk 0:31:56]} 58.
Ke3 {[%clk 0:33:04]} 58... Kg7 {[%clk 0:32:22]} 59. Kf4 {[%clk 0:32:41]} 59...
Kf6 {[%clk 0:32:51]} 60. Kf3 {[%clk 0:32:47]} 60... Kf5 {[%clk 0:33:13]} 61. Ke3
{[%clk 0:33:11]} 61... e5 {[%clk 0:33:26]} 62. Kf3 {[%clk 0:33:33]} 62... e4+
{[%clk 0:33:49]} 63. Kg3 {[%clk 0:33:01]} 63... h5 {[%clk 0:34:15]} 64. Kf2
{[%clk 0:33:09]} 64... Kf4 {[%clk 0:34:40]} 65. Ke2 {[%clk 0:33:18]} 65... e3
{[%clk 0:35:05]} 0-1

[Variant "Standard"]
[Site "Europe Echecs"]

[Event "Championnat du monde jeunes U10"]
[Date "2024.11.24"]
[White "Kazimzade, Mahammad"]
[Black "Melkonyan, Davit"]
[WhiteElo "1687"]
[BlackElo "1842"]
[Round "9.19"]
[Result "0-1"]
[TimeControl "5400+30"]

1. c4 {[%clk 1:30:55]} 1... e5 {[%clk 1:30:52]} 2. g3 {[%clk 1:31:16]} 2... Nf6
{[%clk 1:30:51]} 3. Bg2 {[%clk 1:31:26]} 3... Nc6 {[%clk 1:30:46]} 4. Nc3 {[%clk
1:30:41]} 4... Bb4 {[%clk 1:29:04]} 5. Nf3 {[%clk 1:27:22]} 5... Bxc3 {[%clk
1:27:12]} 6. dxc3 {[%clk 1:26:47]} 6... h6 {[%clk 1:25:56]} 7. O-O {[%clk
1:25:17]} 7... d6 {[%clk 1:24:47]} 8. b3 {[%clk 1:17:06]} 8... O-O {[%clk
1:24:47]} 9. Ba3 {[%clk 1:17:06]} 9... Bf5 {[%clk 1:21:49]} 10. Qc1 {[%clk
1:10:26]} 10... Re8 {[%clk 1:20:19]} 11. Rd1 {[%clk 1:08:45]} 11... Qe7 {[%clk
1:14:31]} 12. Qb2 {[%clk 1:02:08]} 12... Qe6 {[%clk 1:10:44]} 13. Nd2 {[%clk
0:57:12]} 13... Rad8 {[%clk 1:08:44]} 14. Nf1 {[%clk 0:55:13]} 14... Bh3 {[%clk
1:07:40]} 15. Bd5 {[%clk 0:54:37]} 15... Qc8 {[%clk 1:03:07]} 16. Bh1 {[%clk
0:53:34]} 16... e4 {[%clk 1:01:46]} 17. Ne3 {[%clk 0:53:27]} 17... Ne5 {[%clk
0:59:09]} 18. Qc2 {[%clk 0:47:59]} 18... Neg4 {[%clk 0:55:19]} 19. Nxg4 {[%clk
0:44:22]} 19... Bxg4 {[%clk 0:52:12]} 20. Bc1 {[%clk 0:37:00]} 20... Qf5 {[%clk
0:51:07]} 21. Be3 {[%clk 0:36:24]} 21... Qh5 {[%clk 0:47:05]} 22. Re1 {[%clk
0:31:53]} 22... Bf5 {[%clk 0:46:16]} 23. Qd2 {[%clk 0:30:43]} 23... Ng4 {[%clk
0:42:16]} 24. h4 {[%clk 0:30:46]} 24... g5 {[%clk 0:35:13]} 25. f3 {[%clk
0:28:40]} 25... exf3 {[%clk 0:33:32]} 26. exf3 {[%clk 0:28:35]} 26... Nxe3
{[%clk 0:30:53]} 27. Rxe3 {[%clk 0:28:48]} 27... gxh4 {[%clk 0:29:37]} 28. Rxe8+
{[%clk 0:28:34]} 28... Rxe8 {[%clk 0:29:51]} 29. g4 {[%clk 0:28:29]} 29... Qg6
{[%clk 0:29:20]} 30. Kf2 {[%clk 0:28:21]} 30... Bd3 {[%clk 0:28:14]} 31. Re1
{[%clk 0:27:30]} 31... Rxe1 {[%clk 0:27:51]} 32. Qxe1 {[%clk 0:27:54]} 32... Qe6
{[%clk 0:26:57]} 33. Qd2 {[%clk 0:28:16]} 33... Bh7 {[%clk 0:26:10]} 34. Bg2
{[%clk 0:14:33]} 34... b6 {[%clk 0:25:30]} 35. a4 {[%clk 0:10:07]} 35... a5
{[%clk 0:25:28]} 36. Bf1 {[%clk 0:08:13]} 36... Kg7 {[%clk 0:23:58]} 37. Bg2
{[%clk 0:05:22]} 37... Bg6 {[%clk 0:23:25]} 38. Bf1 {[%clk 0:04:44]} 38... Qe5
{[%clk 0:20:55]} 39. f4 {[%clk 0:04:57]} 39... Qc5+ {[%clk 0:21:05]} 40. Kf3
{[%clk 0:04:59]} 40... Qg1 {[%clk 0:20:51]} 41. Bg2 {[%clk 0:04:54]} 41... Qh2
{[%clk 0:20:37]} 42. f5 {[%clk 0:04:54]} 42... Qg3+ {[%clk 0:20:55]} 43. Ke4
{[%clk 0:05:11]} 43... Qxg4+ {[%clk 0:21:05]} 44. Kd5 {[%clk 0:04:56]} 44...
Qxf5+ {[%clk 0:20:04]} 45. Kc6 {[%clk 0:05:13]} 45... Qc5+ {[%clk 0:19:39]} 46.
Kb7 {[%clk 0:05:29]} 46... b5 {[%clk 0:19:00]} 47. Qd4+ {[%clk 0:05:34]} 47...
Qxd4 {[%clk 0:19:23]} 48. cxd4 {[%clk 0:05:58]} 48... bxc4 {[%clk 0:19:28]} 49.
bxc4 {[%clk 0:06:21]} 49... c5 {[%clk 0:19:14]} 50. dxc5 {[%clk 0:06:24]} 50...
dxc5 {[%clk 0:19:41]} 51. Kc6 {[%clk 0:06:51]} 51... Bc2 {[%clk 0:19:40]} 52.
Kxc5 {[%clk 0:07:05]} 52... Bxa4 {[%clk 0:20:06]} 53. Kb6 {[%clk 0:07:24]} 53...
Bd7 {[%clk 0:20:10]} 54. Kxa5 {[%clk 0:07:47]} 54... h3 {[%clk 0:20:16]} 55. Bh1
{[%clk 0:07:56]} 55... Kf6 {[%clk 0:20:25]} 56. c5 {[%clk 0:08:20]} 56... Ke5
{[%clk 0:20:34]} 57. c6 {[%clk 0:08:34]} 57... Bxc6 58. Bxc6 {[%clk 0:08:57]}
58... f5 {[%clk 0:20:20]} 59. Kb4 {[%clk 0:09:22]} 59... Kd4 {[%clk 0:20:47]}
60. Kb3 {[%clk 0:09:36]} 60... Kd3 {[%clk 0:20:23]} 61. Bb5+ {[%clk 0:09:16]}
61... Ke3 {[%clk 0:20:04]} 62. Kc2 {[%clk 0:09:00]} 62... f4 {[%clk 0:20:03]}
63. Bf1 {[%clk 0:08:57]} 63... h2 {[%clk 0:20:25]} 64. Bg2 {[%clk 0:09:21]}
64... f3 {[%clk 0:20:55]} 65. Bh1 {[%clk 0:09:41]} 65... f2 {[%clk 0:21:23]} 0-1

[Variant "Standard"]
[Site "Europe Echecs"]

[Event "Championnat du monde jeunes U10"]
[Date "2024.11.24"]
[White "Tugsbilguun, Davganamdag"]
[Black "Nguyen Truong An Khang"]
[WhiteElo "1660"]
[BlackElo "1836"]
[Round "9.20"]
[Result "0-1"]
[TimeControl "5400+30"]

1. e4 {[%clk 1:30:54]} 1... e5 {[%clk 1:30:58]} 2. Nf3 {[%clk 1:31:14]} 2... Nc6
{[%clk 1:31:22]} 3. d4 {[%clk 1:31:37]} 3... exd4 {[%clk 1:31:47]} 4. Nxd4
{[%clk 1:32:01]} 4... Nf6 {[%clk 1:32:05]} 5. Nc3 {[%clk 1:32:30]} 5... Bb4
{[%clk 1:32:28]} 6. Nxc6 {[%clk 1:32:55]} 6... bxc6 {[%clk 1:32:54]} 7. Bd3
{[%clk 1:33:18]} 7... d5 {[%clk 1:33:16]} 8. exd5 {[%clk 1:33:43]} 8... cxd5
{[%clk 1:33:39]} 9. O-O {[%clk 1:34:09]} 9... O-O {[%clk 1:34:05]} 10. Bg5
{[%clk 1:34:33]} 10... c6 {[%clk 1:34:32]} 11. Qf3 {[%clk 1:34:54]} 11... Bd6
{[%clk 1:34:57]} 12. Bxf6 {[%clk 1:34:45]} 12... Qxf6 {[%clk 1:35:18]} 13. Qxf6
{[%clk 1:34:50]} 13... gxf6 {[%clk 1:35:44]} 14. Ne2 {[%clk 1:35:03]} 14... c5
{[%clk 1:34:27]} 15. b3 {[%clk 1:29:33]} 15... Be6 {[%clk 1:32:10]} 16. Rad1
{[%clk 1:24:33]} 16... a5 {[%clk 1:28:26]} 17. Ng3 {[%clk 1:20:44]} 17... Rfe8
{[%clk 1:20:01]} 18. Rfe1 {[%clk 1:16:14]} 18... Rab8 {[%clk 1:15:26]} 19. Re3
{[%clk 1:08:01]} 19... Rb4 {[%clk 1:02:29]} 20. c3 {[%clk 1:00:54]} 20... Rb6
{[%clk 0:57:32]} 21. Nh5 {[%clk 0:59:37]} 21... Be5 {[%clk 0:42:45]} 22. f4
{[%clk 0:46:30]} 22... Bxc3 {[%clk 0:40:52]} 23. Bxh7+ {[%clk 0:46:58]} 23...
Kxh7 {[%clk 0:41:21]} 24. Rxc3 {[%clk 0:47:28]} 24... Bg4 {[%clk 0:27:13]} 25.
Rxd5 {[%clk 0:47:55]} 25... Re1+ {[%clk 0:27:40]} 26. Kf2 {[%clk 0:48:14]} 26...
Re2+ {[%clk 0:27:51]} 27. Kg3 {[%clk 0:40:33]} 27... f5 {[%clk 0:26:14]} 28. h3
{[%clk 0:22:09]} 28... Bxh5 {[%clk 0:26:31]} 29. Kh4 {[%clk 0:21:10]} 29... Rxg2
{[%clk 0:25:58]} 30. Rxf5 {[%clk 0:21:29]} 30... Be2 {[%clk 0:26:01]} 0-1

[Variant "Standard"]
[Site "Europe Echecs"]

[Event "Championnat du monde jeunes U10"]
[Date "2024.11.24"]
[White "Akramov, Khasan"]
[Black "Babeikin, Kiryl"]
[WhiteElo "1835"]
[BlackElo "1721"]
[Round "9.21"]
[Result "1/2-1/2"]
[TimeControl "5400+30"]

1. c4 {[%clk 1:30:59]} 1... e6 {[%clk 1:30:55]} 2. g3 {[%clk 1:31:19]} 2... Nf6
{[%clk 1:30:55]} 3. Bg2 {[%clk 1:31:40]} 3... d5 {[%clk 1:31:18]} 4. d4 {[%clk
1:32:05]} 4... Be7 {[%clk 1:31:44]} 5. Nf3 {[%clk 1:32:29]} 5... O-O {[%clk
1:32:06]} 6. O-O {[%clk 1:32:51]} 6... dxc4 {[%clk 1:32:29]} 7. Qc2 {[%clk
1:33:13]} 7... a6 {[%clk 1:32:52]} 8. a4 {[%clk 1:31:49]} 8... Bd7 {[%clk
1:33:14]} 9. Qxc4 {[%clk 1:30:52]} 9... Bc6 {[%clk 1:33:33]} 10. Bg5 {[%clk
1:28:34]} 10... Bd5 {[%clk 1:33:48]} 11. Qd3 {[%clk 1:25:33]} 11... c5 {[%clk
1:24:27]} 12. dxc5 {[%clk 1:19:42]} 12... Nbd7 {[%clk 1:24:37]} 13. Nc3 {[%clk
1:11:35]} 13... Nxc5 {[%clk 1:06:23]} 14. Qe3 {[%clk 1:07:12]} 14... Bxf3 {[%clk
1:03:21]} 15. Qxf3 {[%clk 1:04:11]} 15... h6 {[%clk 0:57:56]} 16. Be3 {[%clk
0:57:29]} 16... Qa5 {[%clk 0:54:53]} 17. Rab1 {[%clk 0:49:46]} 17... Ncd7 {[%clk
0:47:07]} 18. Qxb7 {[%clk 0:39:44]} 18... Rab8 {[%clk 0:47:14]} 19. Qa7 {[%clk
0:36:03]} 19... Bc5 {[%clk 0:28:52]} 20. Bxc5 {[%clk 0:36:24]} 20... Nxc5 {[%clk
0:28:50]} 21. Qe7 {[%clk 0:31:48]} 21... Qb4 {[%clk 0:25:57]} 22. Rfd1 {[%clk
0:25:14]} 22... Nxa4 {[%clk 0:23:17]} 23. Qxb4 {[%clk 0:22:47]} 23... Rxb4
{[%clk 0:23:41]} 24. Nxa4 {[%clk 0:22:15]} 24... Rxa4 {[%clk 0:24:07]} 25. Ra1
{[%clk 0:21:23]} 25... Rb4 {[%clk 0:14:19]} 26. Rd2 {[%clk 0:19:06]} 26... Rfb8
{[%clk 0:14:38]} 27. Ra2 {[%clk 0:13:11]} 27... Ng4 {[%clk 0:14:55]} 28. h3
{[%clk 0:10:40]} 28... Ne5 {[%clk 0:15:10]} 29. Rxa6 {[%clk 0:10:08]} 29... Rxb2
{[%clk 0:15:34]} 30. Rxb2 {[%clk 0:10:08]} 30... Rxb2 {[%clk 0:15:56]} 31. f4
{[%clk 0:10:21]} 31... Nc4 {[%clk 0:15:14]} 32. Kf2 {[%clk 0:10:41]} 32... g6
{[%clk 0:14:00]} 33. Be4 {[%clk 0:10:27]} 33... Rb6 {[%clk 0:13:19]} 34. Ra7
{[%clk 0:10:36]} 34... Nd6 {[%clk 0:13:38]} 35. Bd3 {[%clk 0:10:58]} 35... Kg7
{[%clk 0:12:31]} 36. Rd7 {[%clk 0:11:07]} 36... Ne8 {[%clk 0:12:05]} 37. Ra7
{[%clk 0:10:10]} 37... Nf6 {[%clk 0:12:24]} 38. Ke3 {[%clk 0:07:55]} 38... Rb4
{[%clk 0:12:30]} 39. Kd2 {[%clk 0:06:10]} 39... h5 {[%clk 0:12:40]} 1/2-1/2

[Variant "Standard"]
[Site "Europe Echecs"]